bitfinex-derivatives/quotes_SOLF0:USTF0_20220104
["timestamp","ask_amount","ask_price","bid_price","bid_amount"]
[1641287269348,12.52238597,168.51,168.45,3.0]
[1641287269546,12.52238597,168.51,168.44,8.62574561]
[1641287269748,12.52238597,168.51,168.45,3.0]
[1641287269946,15.13045415,168.52,168.47,3.0]
[1641287271351,15.13045415,168.52,168.45,61.2359]
[1641287271549,2.60806818,168.52,168.47,3.0]
[1641287272750,73.69788597,168.54,168.46,4.16274561]
[1641287272951,4.17344157,168.5,168.46,4.16274561]
[1641287273551,73.69788597,168.54,168.46,4.16274561]
[1641287273755,4.17386272,168.48,168.45,4.16274561]
[1641287274451,27.66479,168.49,168.45,4.16274561]
[1641287274653,27.66479,168.49,168.44,7.16274561]
[1641287274856,27.66479,168.49,168.44,4.16274561]
[1641287275058,27.66479,168.49,168.44,7.16274561]
[1641287275257,27.66479,168.49,168.44,4.16274561]
[1641287275659,4.17426647,168.47,168.44,3.0]
[1641287276259,27.66479,168.49,168.43,4.16274561]
[1641287276557,27.66479,168.49,168.46,4.16274561]
[1641287277259,40.18717597,168.49,168.45,4.16274561]
[1641287278061,12.52238597,168.48,168.44,4.16274561]
[1641287280762,27.66479,168.47,168.44,4.16274561]
[1641287281963,40.18717597,168.47,168.43,5.73303609]
[1641287282663,40.18717597,168.47,168.43,4.16274561]
[1641287284264,40.18717597,168.47,168.43,7.16274561]
[1641287285070,27.66479,168.47,168.44,4.16274561]
[1641287285267,27.66479,168.47,168.44,9.17074561]
[1641287285869,12.52238597,168.48,168.44,9.17074561]
[1641287286068,12.52238597,168.49,168.45,5.73303609]
[1641287286970,40.18717597,168.49,168.45,5.73303609]
[1641287287770,40.18717597,168.49,168.45,4.16274561]
[1641287288370,40.18717597,168.49,168.44,8.05329048]
[1641287288371,2.61419325,168.48,168.44,10.64574561]
[1641287288570,2.61419325,168.48,168.44,4.16274561]
[1641287288969,40.18717597,168.49,168.44,4.16274561]
[1641287289171,40.18717597,168.49,168.44,5.73196751]
[1641287289770,2.61420625,168.48,168.44,5.73196751]
[1641287290373,40.18717597,168.49,168.44,5.73196751]
[1641287291372,2.61418412,168.48,168.44,5.73196751]
[1641287291776,2.61418412,168.48,168.44,8.73196751]
[1641287292174,12.52238597,168.49,168.44,8.73196751]
[1641287292382,4.18331519,168.45,168.44,10.36474561]
[1641287292577,1.519e-05,168.45,168.44,13.36474561]
[1641287293175,15.12495169,168.5,168.44,10.7712219]
[1641287293776,15.12495169,168.5,168.44,7.7712219]
[1641287294178,2.57605875,168.5,168.45,1.5692219]
[1641287294376,2.57605875,168.5,168.48,3.0]
[1641287294575,2.57605875,168.5,168.48,6.526]
[1641287294975,27.66479,168.51,168.48,6.526]
[1641287295777,2.61445443,168.5,168.48,6.526]
[1641287296378,27.66479,168.51,168.48,6.526]
[1641287297079,2.61446307,168.5,168.48,6.526]
[1641287297279,2.61446307,168.5,168.45,65.4571]
[1641287297778,2.61446307,168.5,168.46,3.0]
[1641287297981,27.66479,168.51,168.46,3.0]
[1641287298184,12.55510987,168.5,168.46,4.57022688]
[1641287298880,2.5772163,168.5,168.47,1.57022688]
[1641287299580,27.66479,168.51,168.47,1.57022688]
[1641287300284,2.57720843,168.5,168.47,1.57022688]
[1641287300883,2.57720843,168.5,168.47,4.57022688]
[1641287301083,2.57720843,168.5,168.47,1.57022688]
[1641287301286,12.55515713,168.52,168.48,3.0]
[1641287301486,12.55515713,168.52,168.48,9.643]
[1641287301685,12.55515713,168.52,168.51,3.0]
[1641287302086,2.57658479,168.52,168.51,3.0]
[1641287302685,12.55515713,168.54,168.51,3.0]
[1641287302887,2.57598534,168.54,168.51,4.57022688]
[1641287303685,12.55515713,168.56,168.52,1.57022688]
[1641287304485,2.5759186,168.56,168.52,1.57022688]
[1641287305089,12.55177286,168.56,168.52,1.57022688]
[1641287305988,2.57585282,168.56,168.52,1.57022688]
[1641287306588,2.57585282,168.56,168.52,4.57022688]
[1641287306788,12.55171658,168.55,168.51,3.0]
[1641287306988,12.55171658,168.55,168.5,4.57022688]
[1641287307690,9.65817725,168.56,168.5,3.0]
[1641287307890,12.55263226,168.54,168.5,3.0]
[1641287308793,2.57620636,168.55,168.46,64.4513]
[1641287308992,2.57620636,168.55,168.51,3.0]
[1641287310094,61.1717,168.56,168.51,3.0]
[1641287311494,2.56038561,168.55,168.51,3.0]
[1641287313700,30.22517561,168.55,168.51,3.0]
[1641287314098,30.22517561,168.55,168.46,92.11609]
[1641287314399,30.22517561,168.55,168.51,3.0]
[1641287314699,27.66479,168.55,168.51,9.312]
[1641287314900,27.66479,168.55,168.51,6.312]
[1641287316306,27.66479,168.55,168.51,9.312]
[1641287318012,27.66479,168.55,168.51,6.312]
[1641287318409,27.66479,168.55,168.51,9.312]
[1641287318811,2.57604234,168.54,168.51,9.312]
[1641287319311,2.57604234,168.54,168.51,3.0]
[1641287319512,2.57604234,168.54,168.47,19.6355077]
[1641287319513,40.21742226,168.55,168.47,19.6355077]
[1641287320012,2.57599529,168.54,168.47,21.24354728]
[1641287320211,2.57599529,168.54,168.52,3.0]
[1641287320412,2.57599529,168.54,168.47,21.24354728]
[1641287320711,2.57599529,168.54,168.52,3.0]
[1641287321212,40.21742226,168.55,168.51,3.0]
[1641287322013,2.576054,168.54,168.51,3.0]
[1641287322618,40.21742226,168.55,168.51,3.0]
[1641287323215,12.55263226,168.55,168.51,3.0]
[1641287323413,2.57607444,168.54,168.51,3.0]
[1641287324613,40.21742226,168.55,168.51,3.0]
[1641287324814,42.79348559,168.55,168.51,3.0]
[1641287325417,15.12869559,168.54,168.51,3.0]
[1641287325915,40.217293,168.55,168.51,3.0]
[1641287326819,2.57617095,168.54,168.51,3.0]
[1641287327220,40.217293,168.55,168.51,3.0]
[1641287327421,12.552503,168.54,168.51,3.0]
[1641287328420,61.1717,168.56,168.51,3.0]
[1641287328620,2.57491952,168.54,168.51,3.0]
[1641287329024,2.57491952,168.54,168.46,104.67413036]
[1641287329221,2.57491952,168.54,168.52,3.0]
[1641287329421,12.54638355,168.54,168.52,8.841]
[1641287330120,2.57484831,168.54,168.52,8.841]
[1641287330621,40.21099553,168.55,168.52,8.841]
[1641287331224,40.21099553,168.55,168.52,5.841]
[1641287331424,2.5748537,168.54,168.46,104.67413036]
[1641287332527,40.21099553,168.55,168.46,104.67413036]
[1641287332726,12.54620553,168.54,168.47,1.6072127]
[1641287332926,12.54620553,168.54,168.51,3.0]
[1641287333126,2.57491471,168.54,168.51,3.0]
[1641287333626,2.57491471,168.54,168.46,104.67413036]
[1641287333828,12.54635601,168.54,168.46,104.67413036]
[1641287334029,12.54635601,168.54,168.5,3.0]
[1641287334427,2.57502974,168.54,168.5,3.0]
[1641287335027,15.12167281,168.54,168.46,77.00934036]
[1641287335227,15.12167281,168.54,168.51,3.0]
[1641287336933,40.21099655,168.55,168.47,19.63200662]
[1641287337138,40.21099655,168.55,168.52,3.0]
[1641287337433,40.21099655,168.55,168.51,3.0]
[1641287337834,2.57484494,168.54,168.51,3.0]
[1641287338336,40.21739501,168.55,168.51,3.0]
[1641287338535,40.21739501,168.55,168.47,19.63200662]
[1641287338835,40.21739501,168.55,168.52,3.0]
[1641287339036,2.57619656,168.54,168.52,3.0]
[1641287340636,40.21739501,168.55,168.52,3.0]
[1641287341338,2.57595871,168.54,168.52,3.0]
[1641287342742,27.66479,168.55,168.52,3.0]
[1641287342939,27.66479,168.55,168.53,1.60806526]
[1641287343538,2.5756869,168.54,168.53,1.60806526]
[1641287343937,2.5756869,168.54,168.53,4.60806526]
[1641287344140,27.66479,168.55,168.53,4.60806526]
[1641287344542,27.66479,168.55,168.53,1.60806526]
[1641287344943,2.57555354,168.54,168.52,3.0]
[1641287345541,27.66479,168.55,168.52,3.0]
[1641287345940,27.66479,168.55,168.5,60.1497]
[1641287346141,27.66479,168.55,168.48,12.55804036]
[1641287346343,27.66479,168.55,168.5,3.0]
[1641287346945,2.5760514,168.54,168.51,1.60803022]
[1641287347948,40.21703487,168.55,168.5,3.0]
[1641287348147,12.55224487,168.54,168.5,3.0]
[1641287348649,12.55224487,168.54,168.47,60.5824]
[1641287348846,2.57621198,168.54,168.5,3.0]
[1641287349447,12.55268224,168.54,168.5,3.0]
[1641287349948,12.55268224,168.54,168.47,60.5824]
[1641287350149,12.55268224,168.54,168.51,3.0]
[1641287350547,12.55268224,168.54,168.51,4.60805221]
[1641287350548,2.57591951,168.54,168.51,4.60805221]
[1641287351551,2.57591951,168.54,168.51,3.0]
[1641287351751,27.66479,168.55,168.51,3.0]
[1641287352255,27.66479,168.55,168.47,73.14044036]
[1641287352756,2.57593076,168.54,168.52,5.79203142]
[1641287353555,2.57593076,168.54,168.48,19.6354953]
[1641287354257,27.66479,168.55,168.47,12.55804036]
[1641287354457,40.21673328,168.55,168.47,12.55804036]
[1641287355456,27.66479,168.49,168.47,12.55804036]
[1641287355656,27.66479,168.49,168.43,66.3259]
[1641287356055,27.66479,168.49,168.42,21.48783163]
[1641287356258,27.66479,168.49,168.42,15.55804036]
[1641287356458,87.89919,168.49,168.42,12.55804036]
[1641287357060,87.89919,168.49,168.43,3.0]
[1641287357260,87.89919,168.49,168.42,12.55804036]
[1641287357463,27.66479,168.45,168.42,12.55804036]
[1641287357663,34.46379,168.45,168.42,12.55804036]
[1641287358464,34.46379,168.45,168.4,15.55814036]
[1641287358664,27.76590391,168.45,168.4,15.55814036]
[1641287359167,27.76590391,168.45,168.4,12.55814036]
[1641287359566,27.76590391,168.45,168.4,0.0001]
[1641287360469,40.32441809,168.45,168.4,0.0001]
[1641287361270,27.76590391,168.45,168.4,0.0001]
[1641287361471,27.76590391,168.45,168.44,3.0]
[1641287361671,12.55851418,168.46,168.41,4.687]
[1641287362174,12.55851418,168.46,168.43,3.0]
[1641287362373,12.55851418,168.47,168.43,3.0]
[1641287362673,12.55851418,168.47,168.41,3.0]
[1641287363172,12.55851418,168.47,168.4,0.0001]
[1641287363371,12.55851418,168.47,168.41,3.0]
[1641287363872,12.55851418,168.47,168.4,0.0001]
[1641287364071,12.55851418,168.47,168.4,3.0001]
[1641287364472,12.55851418,168.46,168.4,3.0001]
[1641287364874,12.55851418,168.46,168.4,0.0001]
[1641287365474,27.66479,168.45,168.4,0.0001]
[1641287366374,12.55851418,168.46,168.4,0.0001]
[1641287366574,12.55851418,168.46,168.42,3.0]
[1641287366976,12.55851418,168.46,168.45,3.0]
[1641287367377,12.55851418,168.48,168.45,3.0]
[1641287367578,27.66479,168.46,168.4,15.55814036]
[1641287367877,12.55851418,168.48,168.45,3.0]
[1641287368077,12.55851418,168.48,168.47,3.0]
[1641287368278,12.55851418,168.48,168.42,5.97]
[1641287368879,12.55851418,168.5,168.43,12.55804036]
[1641287369076,12.55851418,168.5,168.47,3.0]
[1641287369479,12.55851418,168.5,168.43,40.22283036]
[1641287369679,12.55851418,168.51,168.49,3.0]
[1641287369881,12.55851418,168.51,168.5,3.0]
[1641287370680,40.22330418,168.53,168.5,3.0]
[1641287370881,40.22330418,168.53,168.48,3.0]
[1641287371381,12.55851418,168.52,168.48,3.0]
[1641287371781,12.55851418,168.52,168.45,78.14004036]
[1641287371981,12.55851418,168.52,168.48,3.0]
[1641287372384,12.55851418,168.51,168.48,3.0]
[1641287372984,40.22330418,168.53,168.48,3.0]
[1641287373182,40.22330418,168.53,168.5,3.0]
[1641287373582,40.22330418,168.53,168.49,3.0]
[1641287374383,12.55851418,168.51,168.49,3.0]
[1641287377884,12.55851418,168.51,168.48,3.0]
[1641287378285,12.55851418,168.51,168.46,3.0]
[1641287378485,12.55851418,168.51,168.45,3.0]
[1641287379087,12.55851418,168.51,168.43,77.71734036]
[1641287379287,12.55851418,168.49,168.43,65.1593]
[1641287379484,12.55851418,168.49,168.42,12.55804036]
[1641287379686,12.55851418,168.49,168.46,3.0]
[1641287380087,12.55851418,168.49,168.43,64.9053]
[1641287380286,12.55851418,168.49,168.42,12.55804036]
[1641287381091,40.22330418,168.5,168.42,19.33619231]
[1641287381289,40.22330418,168.5,168.46,3.0]
[1641287381690,40.22330418,168.5,168.47,3.0]
[1641287381990,12.55851418,168.49,168.46,3.0]
[1641287382492,12.55851418,168.49,168.43,59.7449]
[1641287382694,12.55851418,168.49,168.47,3.0]
[1641287382892,12.55851418,168.49,168.48,3.0]
[1641287383093,40.22330418,168.5,168.48,3.0]
[1641287383293,40.22330418,168.5,168.47,4.568]
[1641287383294,40.22330418,168.5,168.49,3.0]
[1641287383695,12.55851418,168.5,168.49,3.0]
[1641287384096,12.55851418,168.52,168.49,3.0]
[1641287384494,12.55851418,168.52,168.5,3.0]
[1641287389303,12.55851418,168.52,168.51,3.0]
[1641287389803,9.96108345,168.53,168.51,3.0]
[1641287392202,65.6287,168.54,168.51,3.0]
[1641287392404,33.11054813,168.56,168.51,3.0]
[1641287392601,60.77533813,168.56,168.51,3.0]
[1641287393303,27.66479,168.56,168.51,3.0]
[1641287393503,71.45333167,168.58,168.51,3.0]
[1641287393903,2.67008041,168.57,168.51,3.0]
[1641287394505,27.66479,168.55,168.47,64.7129]
[1641287394704,27.66479,168.55,168.54,3.0]
[1641287395103,27.66479,168.55,168.52,5.802]
[1641287395304,30.33487041,168.55,168.52,5.802]
[1641287395906,12.62978504,168.54,168.47,64.7129]
[1641287396105,12.62978504,168.54,168.53,3.0]
[1641287397508,12.62978504,168.57,168.53,3.0]
[1641287398205,12.62978504,168.57,168.55,3.0]
[1641287399709,12.62978504,168.57,168.48,28.26369094]
[1641287399909,12.62978504,168.57,168.55,3.0]
[1641287404215,12.62978504,168.57,168.52,62.7249]
[1641287404913,19.07778504,168.57,168.52,65.7249]
[1641287405321,19.07778504,168.57,168.52,62.7249]
[1641287405518,19.07778504,168.57,168.48,18.48572264]
[1641287405718,12.55197922,168.55,168.48,5.92768228]
[1641287406422,12.55197922,168.55,168.52,3.0]
[1641287407022,12.55197922,168.54,168.52,3.0]
[1641287412028,12.55197922,168.55,168.52,3.0]
[1641287412828,12.55197922,168.55,168.48,5.92768228]
[1641287413529,12.55197922,168.55,168.52,3.0]
[1641287415736,12.55197922,168.55,168.51,4.18391886]
[1641287416135,12.55197922,168.55,168.54,3.0]
[1641287416835,2.67008041,168.56,168.52,4.18391886]
[1641287416836,15.22205963,168.56,168.52,4.18391886]
[1641287417035,9.88205963,168.56,168.55,3.0]
[1641287418236,33.11054813,168.6,168.55,3.0]
[1641287418437,4.18243931,168.58,168.55,3.0]
[1641287418636,4.18243931,168.58,168.55,64.8783]
[1641287418836,4.18243931,168.58,168.55,61.8783]
[1641287419036,4.18243931,168.58,168.57,3.0]
[1641287420038,27.66479,168.62,168.57,3.0]
[1641287420438,27.66479,168.62,168.55,61.8783]
[1641287420639,27.66479,168.62,168.57,3.0]
[1641287420837,27.66479,168.62,168.58,4.18255083]
[1641287421239,27.66479,168.62,168.58,7.18255083]
[1641287421840,27.66479,168.62,168.58,4.18255083]
[1641287422043,27.66479,168.62,168.57,4.18255083]
[1641287422840,27.66479,168.62,168.57,7.18255083]
[1641287423338,27.66479,168.62,168.57,4.18255083]
[1641287423741,27.66479,168.62,168.58,3.0]
[1641287424440,27.66479,168.62,168.57,4.18255083]
[1641287425741,27.66479,168.62,168.57,7.18255083]
[1641287426443,9.95162138,168.61,168.57,3.0]
[1641287427247,27.66479,168.62,168.57,7.18255083]
[1641287428748,9.82318185,168.61,168.57,7.18255083]
[1641287429145,27.66479,168.59,168.57,7.18255083]
[1641287429346,27.66479,168.59,168.57,3.0]
[1641287432954,27.66479,168.59,168.56,4.18255083]
[1641287433155,3.0,168.58,168.48,33.11054813]
[1641287433355,27.66479,168.57,168.48,33.11054813]
[1641287433755,27.66479,168.57,168.46,39.03875751]
[1641287433958,27.66479,168.57,168.46,42.03875751]
[1641287434158,27.66479,168.57,168.47,3.0]
[1641287434356,9.82567479,168.56,168.46,8.92820938]
[1641287435059,27.66479,168.57,168.46,8.92820938]
[1641287435259,27.66479,168.57,168.46,36.59299938]
[1641287435859,27.66479,168.57,168.47,6.80566313]
[1641287436460,27.66479,168.57,168.48,64.704]
[1641287436961,9.92826864,168.56,168.48,64.704]
[1641287439368,27.66479,168.57,168.48,64.704]
[1641287441270,9.92770377,168.56,168.48,64.704]
[1641287441870,27.66479,168.57,168.48,64.704]
[1641287447773,12.54962249,168.56,168.48,77.25362249]
[1641287448874,27.66479,168.57,168.48,77.25362249]
[1641287449478,40.21440788,168.57,168.49,19.35526466]
[1641287449877,3.0,168.56,168.49,19.35526466]
[1641287450076,16.83061788,168.56,168.48,77.25362249]
[1641287451790,4.281,168.56,168.48,77.25362249]
[1641287452184,63.1074,168.58,168.48,77.25362249]
[1641287452389,37.59291667,168.57,168.48,104.91841249]
[1641287452587,12.55035107,168.56,168.48,104.91841249]
[1641287454291,12.55035107,168.56,168.48,77.25362249]
[1641287454690,12.55035107,168.55,168.48,77.25362249]
[1641287455591,9.92839154,168.56,168.48,77.25362249]
[1641287456392,12.55042052,168.56,168.48,77.25362249]
[1641287457094,30.66479,168.57,168.48,64.704]
[1641287457293,27.66479,168.57,168.48,67.704]
[1641287457493,27.66479,168.57,168.48,64.704]
[1641287457695,2.66384143,168.56,168.48,64.704]
[1641287460097,12.55042052,168.55,168.49,1.50623689]
[1641287461395,12.59252008,168.56,168.49,1.50623689]
[1641287461998,12.55024994,168.55,168.49,1.50623689]
[1641287463099,12.59252008,168.56,168.49,1.50623689]
[1641287463702,12.55046896,168.55,168.49,1.50623689]
[1641287464703,17.95152008,168.56,168.49,1.50623689]
[1641287465703,15.21459159,168.55,168.49,1.50623689]
[1641287465903,15.21459159,168.55,168.5,3.0]
[1641287466105,15.21459159,168.55,168.49,4.50623689]
[1641287466506,12.55002234,168.56,168.51,1.50623689]
[1641287467105,27.66479,168.57,168.51,1.50623689]
[1641287467303,2.6766203,168.56,168.5,29.17102689]
[1641287467509,2.6766203,168.56,168.5,41.72064938]
[1641287468705,40.21372954,168.57,168.51,1.50623689]
[1641287469306,15.22668482,168.56,168.51,1.50623689]
[1641287469906,27.66479,168.57,168.51,1.50623689]
[1641287470805,15.22665248,168.56,168.51,1.50623689]
[1641287471507,27.66479,168.57,168.5,27.66479]
[1641287471707,27.66479,168.57,168.49,20.86170971]
[1641287472311,27.66479,168.57,168.49,14.05585938]
[1641287472508,27.66479,168.57,168.48,64.704]
[1641287472509,15.2332273,168.56,168.51,1.50623689]
[1641287473313,27.66479,168.52,168.49,1.50623689]
[1641287473511,32.89479,168.52,168.49,1.50623689]
[1641287474114,5.23,168.52,168.49,1.50623689]
[1641287474413,2.678811,168.51,168.49,1.50623689]
[1641287475317,60.77533813,168.57,168.49,1.50623689]
[1641287475516,12.55557998,168.54,168.49,6.729]
[1641287475916,12.55557998,168.54,168.49,9.729]
[1641287476317,12.61414263,168.56,168.52,3.0]
[1641287476520,12.55468199,168.55,168.52,3.0]
[1641287476716,12.55468199,168.55,168.51,5.92662834]
[1641287476921,12.55468199,168.55,168.51,8.92662834]
[1641287477524,2.67927648,168.56,168.51,5.92662834]
[1641287477722,2.67927648,168.57,168.52,1.50623689]
[1641287478521,63.1074,168.58,168.52,1.50623689]
[1641287479622,2.67803098,168.57,168.52,1.50623689]
[1641287480324,63.1074,168.58,168.52,1.50623689]
[1641287481023,27.66479,168.59,168.52,1.50623689]
[1641287481226,2.67825667,168.57,168.52,1.50623689]
[1641287481830,15.23119191,168.58,168.52,1.50623689]
[1641287482030,15.23119191,168.58,168.52,4.50623689]
[1641287482231,15.23119191,168.58,168.53,3.0]
[1641287482431,2.67816143,168.58,168.53,8.94]
[1641287482631,27.66479,168.61,168.53,8.94]
[1641287483135,2.67766278,168.6,168.54,1.50623689]
[1641287483331,15.22920853,168.6,168.54,1.50623689]
[1641287483932,2.67766278,168.6,168.54,1.50623689]
[1641287484332,2.67766278,168.6,168.54,4.50623689]
[1641287485138,12.55154575,168.61,168.55,1.50623689]
[1641287485634,27.66479,168.57,168.53,1.50623689]
[1641287486636,2.67811831,168.56,168.51,1.50623689]
[1641287487134,40.21803894,168.57,168.51,1.50623689]
[1641287487335,27.66479,168.57,168.51,1.50623689]
[1641287487535,27.66479,168.57,168.53,3.0]
[1641287487735,33.11054813,168.61,168.53,3.0]
[1641287488137,2.67827779,168.56,168.54,1.50623689]
[1641287488336,2.67827779,168.56,168.55,3.0]
[1641287488536,2.67827779,168.56,168.55,7.568]
[1641287488738,35.78826818,168.61,168.55,9.07423689]
[1641287488939,12.60757106,168.61,168.57,3.0]
[1641287489139,12.60757106,168.61,168.59,3.0]
[1641287489339,12.60757106,168.61,168.59,8.766]
[1641287490041,9.92985101,168.61,168.59,8.766]
[1641287490340,9.92985101,168.66,168.59,8.766]
[1641287490542,9.92985101,168.66,168.59,5.766]
[1641287493543,9.92985101,168.66,168.6,4.18314555]
[1641287496847,12.92985101,168.66,168.6,4.18314555]
[1641287497046,9.92985101,168.66,168.6,4.18314555]
[1641287497346,3.0,168.63,168.58,4.18314555]
[1641287497748,27.66479,168.62,168.58,4.18314555]
[1641287498148,27.66479,168.62,168.57,4.18314555]
[1641287499846,27.66479,168.62,168.58,4.18314555]
[1641287501850,27.66479,168.62,168.57,4.18314555]
[1641287502552,9.56467175,168.61,168.57,4.18314555]
[1641287504350,9.56467175,168.61,168.56,4.18314555]
[1641287506652,27.66479,168.62,168.57,4.18314555]
[1641287507255,9.56463331,168.61,168.57,4.18314555]
[1641287509456,9.56463331,168.61,168.56,4.18314555]
[1641287509956,9.56463331,168.61,168.55,4.393]
[1641287509957,27.66479,168.62,168.57,4.18314555]
[1641287510857,9.56485906,168.61,168.57,4.18314555]
[1641287512662,9.56485906,168.61,168.56,4.18314555]
[1641287513264,27.66479,168.62,168.57,4.18314555]
[1641287513564,27.66479,168.62,168.57,9.90114555]
[1641287513964,9.56507754,168.61,168.57,5.718]
[1641287516172,27.66479,168.62,168.57,5.718]
[1641287518375,64.3831,168.63,168.57,5.718]
[1641287518574,64.3831,168.63,168.56,7.18314555]
[1641287519075,64.3831,168.63,168.59,4.18314555]
[1641287519278,33.11054813,168.67,168.59,4.18314555]
[1641287519574,95.75014813,168.67,168.59,4.18314555]
[1641287519775,12.54933352,168.64,168.6,4.18314555]
[1641287521375,12.54933352,168.63,168.59,4.18314555]
[1641287521774,9.56169437,168.66,168.59,4.18314555]
[1641287521977,9.56169437,168.66,168.57,96.94859]
[1641287521978,12.54871441,168.65,168.61,4.18314555]
[1641287522176,12.54871441,168.65,168.61,8.82814555]
[1641287523277,12.54871441,168.63,168.61,4.645]
[1641287523477,12.54871441,168.63,168.59,4.18314555]
[1641287524280,27.66479,168.61,168.59,4.18314555]
[1641287524479,9.56169437,168.66,168.59,4.18314555]
[1641287524680,9.56169437,168.66,168.59,10.87114555]
[1641287525280,12.5492734,168.64,168.6,4.18314555]
[1641287526480,12.5492734,168.66,168.62,4.18314555]
[1641287527482,12.5492734,168.63,168.59,4.18314555]
[1641287528380,12.5492734,168.64,168.6,4.18314555]
[1641287528580,12.5492734,168.64,168.6,8.65814555]
[1641287528882,2.53972935,168.64,168.6,8.65814555]
[1641287529683,2.53972935,168.64,168.6,4.18314555]
[1641287530682,27.66479,168.65,168.6,4.18314555]
[1641287531084,12.55025095,168.62,168.58,4.18314555]
[1641287531983,12.54994994,168.63,168.59,4.18314555]
[1641287532684,12.10288583,168.64,168.59,4.18314555]
[1641287534185,12.55050908,168.62,168.58,5.82638399]
[1641287534384,40.21529908,168.62,168.58,5.82638399]
[1641287534586,43.21529908,168.62,168.54,12.54933352]
[1641287534787,3.0,168.6,168.54,12.54933352]
[1641287534985,12.55372537,168.57,168.53,4.18457512]
[1641287535588,15.55372537,168.57,168.53,4.18457512]
[1641287535790,12.55372537,168.57,168.53,4.18457512]
[1641287536387,27.66479,168.54,168.53,4.18457512]
[1641287536590,27.66479,168.54,168.49,12.54933352]
[1641287536791,27.66479,168.54,168.48,12.54933352]
[1641287537991,12.55444442,168.56,168.48,12.54933352]
[1641287538291,12.55444442,168.55,168.47,12.54933352]
[1641287538892,12.55444442,168.55,168.48,12.54933352]
[1641287539491,12.55444442,168.55,168.49,3.0]
[1641287539692,12.55444442,168.56,168.5,3.0]
[1641287540396,12.55444442,168.58,168.51,40.21412352]
[1641287542199,12.55444442,168.59,168.51,45.57612352]
[1641287543599,12.55444442,168.59,168.51,40.21412352]
[1641287544199,12.55444442,168.58,168.51,40.21412352]
[1641287546501,12.55444442,168.58,168.51,27.66479]
[1641287547202,22.2614396,168.59,168.51,40.21412352]
[1641287547901,12.55444442,168.59,168.51,40.21412352]
[1641287548104,12.55444442,168.59,168.51,12.54933352]
[1641287548501,12.55444442,168.57,168.5,12.54933352]
[1641287549202,12.55444442,168.57,168.49,76.32443352]
[1641287549403,12.55444442,168.57,168.49,12.54933352]
[1641287550503,12.55444442,168.57,168.49,19.58072215]
[1641287552304,12.55444442,168.57,168.5,12.54933352]
[1641287553004,40.21923442,168.58,168.5,12.54933352]
[1641287555906,12.55444442,168.57,168.49,19.58072215]
[1641287556909,27.66479,168.55,168.49,19.58072215]
[1641287557508,27.66479,168.55,168.49,12.54933352]
[1641287557708,40.21923442,168.55,168.47,12.54933352]
[1641287558910,12.55444442,168.54,168.47,12.54933352]
[1641287559511,12.55444442,168.54,168.46,19.58079584]
[1641287560711,12.55444442,168.54,168.47,12.54933352]
[1641287560911,12.55444442,168.54,168.47,16.64433352]
[1641287561411,40.21923442,168.55,168.47,16.64433352]
[1641287562714,27.66479,168.55,168.48,12.54933352]
[1641287564717,40.21923442,168.55,168.48,12.54933352]
[1641287565116,40.21923442,168.55,168.48,40.21412352]
[1641287565318,27.66479,168.55,168.48,40.21412352]
[1641287565720,12.55444442,168.56,168.48,40.21412352]
[1641287566020,12.55444442,168.56,168.48,43.21412352]
[1641287566518,12.55444442,168.56,168.48,40.21412352]
[1641287566718,12.55444442,168.56,168.49,3.0]
[1641287567023,12.55444442,168.58,168.51,27.66479]
[1641287567222,12.55444442,168.58,168.51,34.47179]
[1641287569424,77.68834442,168.59,168.51,47.02112352]
[1641287570523,12.55444442,168.58,168.51,34.47179]
[1641287573131,27.66479,168.57,168.51,6.807]
[1641287573328,27.66479,168.57,168.5,74.78193352]
[1641287574328,40.21923442,168.57,168.5,62.2326]
[1641287574730,40.21923442,168.57,168.49,12.54933352]
[1641287575327,2.59292966,168.56,168.51,1.58990577]
[1641287575830,2.59292966,168.56,168.49,21.17113973]
[1641287584634,15.14737408,168.57,168.49,21.17113973]
[1641287585536,42.81216408,168.57,168.49,21.17113973]
[1641287585936,30.25771966,168.57,168.5,12.54933352]
[1641287586536,2.59292966,168.56,168.5,12.54933352]
[1641287589143,2.59292966,168.56,168.5,15.54933352]
[1641287589344,2.59292966,168.56,168.5,12.54933352]
[1641287589743,2.59292966,168.56,168.51,1.58990577]